bitfinex-derivatives/quotes_ETHF0:USTF0_20240826
["timestamp","ask_amount","ask_price","bid_price","bid_amount"]
[1724702847154,1.84826,2679.7,2679.3,3.91022213]
[1724702848062,0.37307,2679.6,2679.3,3.91022213]
[1724702848753,0.37308,2679.5,2679.2,5.437]
[1724702848957,2.13087,2679.6,2679.2,5.437]
[1724702849753,0.3731,2679.4,2679.2,1.8378]
[1724702849958,0.37311,2679.3,2679.2,1.8378]
[1724702850948,0.37311,2679.3,2679.0,3.21217186]
[1724702851255,0.37313,2679.1,2679.0,0.00437186]
[1724702851657,4.10593,2679.1,2679.0,0.00437186]
[1724702852154,0.37322,2678.5,2678.3,0.97453855]
[1724702852463,0.37327,2678.2,2678.1,4.02003604]
[1724702852755,0.37327,2678.2,2678.0,4.01549856]
[1724702852948,0.37325,2678.3,2678.0,4.01549856]
[1724702853150,0.37784146,2678.3,2678.0,0.00292884]
[1724702853351,0.37784146,2678.3,2678.1,4.01549856]
[1724702853352,0.37783146,2678.3,2678.1,4.01549856]
[1724702854259,0.00458146,2678.3,2678.2,3.22]
[1724702855160,0.00458146,2678.3,2678.0,0.37620884]
[1724702855161,0.00458146,2678.3,2678.0,0.00292884]
[1724702856164,0.37783146,2678.3,2678.0,0.00292884]
[1724702856554,0.37783146,2678.3,2677.9,6.90252782]
[1724702856555,0.37329,2678.0,2677.9,0.00372782]
[1724702857063,4.10769,2678.0,2677.9,0.00372782]
[1724702857565,4.10769,2678.0,2677.9,0.00842424]
[1724702857753,1.8846,2678.2,2677.9,0.00842424]
[1724702857951,2.25787,2678.2,2677.9,0.00842424]
[1724702858561,2.25787,2678.2,2677.9,1.80162424]
[1724702859761,2.25786,2678.2,2677.9,1.80162424]
[1724702859966,0.37783146,2678.3,2677.9,1.80162424]
[1724702860169,0.00458146,2678.3,2677.9,3.95782424]
[1724702860367,0.00458146,2678.3,2678.0,1.8567]
[1724702860670,0.00458146,2678.3,2678.0,6.4241453]
[1724702861060,0.00458146,2678.3,2678.0,6.0508653]
[1724702861269,0.37327,2678.2,2678.0,6.0508653]
[1724702861567,0.37783146,2678.3,2678.0,6.0508653]
[1724702862065,0.37783146,2678.3,2678.0,4.1941653]
[1724702862365,0.37328,2678.1,2677.9,3.58452424]
[1724702862870,0.00458146,2678.3,2677.9,3.58452424]
[1724702863063,0.00458146,2678.3,2677.9,1.80162424]
[1724702863266,0.37329,2678.1,2677.9,1.80162424]
[1724702863966,0.37329,2678.0,2677.9,1.80162424]
[1724702864163,0.37329,2678.0,2677.9,0.00842424]
[1724702864363,4.10769,2678.0,2677.9,0.00842424]
[1724702865366,5.98769,2678.0,2677.9,0.00842424]
[1724702865563,2.25329,2678.0,2677.9,0.00842424]
[1724702868078,1.88,2678.0,2677.9,0.00842424]
[1724702868372,2.25329,2678.0,2677.9,0.00842424]
[1724702868990,1.8442,2678.1,2677.9,0.00842424]
[1724702868991,2.21748,2678.1,2677.9,0.00842424]
[1724702869277,1.91848146,2678.3,2677.9,0.00842424]
[1724702869468,0.37329,2678.0,2677.9,0.00842424]
[1724702870074,1.91848146,2678.3,2677.9,0.00842424]
[1724702870271,0.37327,2678.2,2677.9,0.00842424]
[1724702870465,3.68118146,2678.3,2677.9,0.00842424]
[1724702870668,0.37327,2678.2,2677.9,1.76032424]
[1724702870971,0.37327,2678.2,2677.9,3.62012424]
[1724702871476,3.68118146,2678.3,2677.9,3.62012424]
[1724702871670,0.37329,2678.1,2677.9,3.62012424]
[1724702871867,0.37329,2678.0,2677.9,3.62012424]
[1724702872178,0.37329,2678.0,2677.9,1.76032424]
[1724702872377,4.10769,2678.0,2677.9,0.00842424]
[1724702873768,0.37327,2678.2,2677.9,0.00842424]
[1724702873972,0.37328,2678.1,2677.9,0.00842424]
[1724702875067,0.37326,2678.2,2677.9,0.00842424]
[1724702875371,0.37328,2678.1,2677.9,0.00842424]
[1724702875576,0.37327,2678.2,2677.9,0.00842424]
[1724702875765,0.00458146,2678.3,2677.9,0.00842424]
[1724702876276,0.37783146,2678.3,2677.9,0.38171424]
[1724702876472,0.37783146,2678.3,2678.0,1.8183]
[1724702876770,0.00458146,2678.3,2678.2,0.37326]
[1724702877177,0.00458146,2678.3,2678.1,0.37326]
[1724702877473,0.00458146,2678.3,2678.2,1.8257]
[1724702877680,0.00458146,2678.3,2678.2,2.19896]
[1724702877868,0.00458146,2678.3,2678.2,1.8257]
[1724702879083,0.00458146,2678.3,2678.0,3.5938]
[1724702879084,0.37327,2678.1,2678.0,3.5938]
[1724702879371,0.00458146,2678.3,2678.0,3.5938]
[1724702879372,0.37327,2678.2,2678.0,3.5938]
[1724702879583,0.37783146,2678.3,2678.0,3.5938]
[1724702879768,0.37783146,2678.3,2678.0,3.96708]
[1724702880075,0.00458146,2678.3,2678.0,3.5938]
[1724702880275,0.00458146,2678.3,2678.2,0.37326]
[1724702880580,0.00458146,2678.3,2678.2,3.98316329]
[1724702880783,0.00458146,2678.3,2678.2,7.71676329]
[1724702880966,0.00458146,2678.3,2678.2,3.98316329]
[1724702880967,0.37783146,2678.3,2678.2,3.98316329]
[1724702881174,0.37783146,2678.3,2678.0,3.5938]
[1724702881572,0.37783146,2678.3,2678.1,3.96749136]
[1724702881977,0.00458146,2678.3,2678.1,3.96749136]
[1724702882182,0.00458146,2678.3,2678.1,7.70109136]
[1724702882475,0.00458146,2678.3,2678.2,0.37326]
[1724702882871,0.00458146,2678.3,2678.2,11.56668633]
[1724702883381,0.00458146,2678.3,2678.2,11.19342633]
[1724702884269,0.00458146,2678.3,2678.2,7.98562633]
[1724702884475,0.00458146,2678.3,2678.0,3.5938]
[1724702884476,0.37326,2678.2,2678.0,3.5938]
[1724702885580,1.90678146,2678.3,2678.0,1.7755]
[1724702885774,0.37327,2678.1,2678.0,1.7755]
[1724702885975,0.37327,2678.2,2678.0,1.7755]
[1724702886582,0.37327,2678.2,2677.9,3.21622424]
[1724702886583,0.37329,2678.0,2677.9,3.21622424]
[1724702886982,4.10769,2678.0,2677.9,0.00842424]
[1724702887177,6.77202,2678.0,2677.9,0.00842424]
[1724702891081,5.83879,2678.0,2677.9,0.00842424]
[1724702893474,0.93326,2677.9,2677.3,3.2078]
[1724702893686,3.22,2677.7,2677.3,3.58118]
[1724702893888,2.26433,2677.8,2677.3,3.58118]
[1724702894289,1.891,2677.8,2677.3,3.2078]
[1724702894483,0.37334,2677.7,2677.3,3.21257699]
[1724702895381,3.22,2677.6,2677.3,3.21257699]
[1724702895580,3.22,2677.6,2677.3,4.18711554]
[1724702895783,3.59335,2677.6,2677.3,4.18711554]
[1724702895979,1.8909,2677.5,2677.3,3.21257699]
[1724702896188,3.22,2677.6,2677.3,4.18711554]
[1724702897385,3.22,2677.6,2677.4,0.97453855]
[1724702897887,3.22,2677.6,2677.3,4.56049554]
[1724702898095,3.22,2677.6,2677.4,0.97453855]
[1724702898293,3.7819,2677.8,2677.4,1.34790855]
[1724702898294,5.111,2677.8,2677.4,1.34790855]
[1724702898501,5.111,2677.8,2677.5,3.7698]
[1724702898797,5.48432,2677.8,2677.5,3.7698]
[1724702899586,3.59334,2677.6,2677.5,1.8737]
[1724702899789,3.22,2677.6,2677.5,1.8737]
[1724702900092,3.59334,2677.6,2677.4,0.97453855]
[1724702900289,3.59334,2677.6,2677.3,4.18711554]
[1724702900598,3.22,2677.6,2677.3,4.18711554]
[1724702901092,3.22,2677.6,2677.4,0.97453855]
[1724702901398,1.891,2677.8,2677.5,0.97453855]
[1724702901399,5.111,2677.8,2677.5,0.97453855]
[1724702901598,5.111,2677.8,2677.6,1.8226]
[1724702902497,5.48432,2677.8,2677.6,1.8226]
[1724702903388,5.48432,2677.8,2677.6,5.0304]
[1724702903591,5.111,2677.8,2677.6,5.0304]
[1724702903790,5.8815,2678.1,2677.7,1.7758]
[1724702903791,7.68128,2678.1,2677.7,1.7758]
[1724702903996,0.37329,2678.0,2677.7,4.62733855]
[1724702904499,7.68128,2678.1,2677.7,5.00066855]
[1724702904694,0.37329,2678.0,2677.7,4.62733855]
[1724702905001,0.37329,2678.0,2677.7,3.6528]
[1724702905295,0.37329,2678.0,2677.7,4.02613]
[1724702905489,3.5933,2677.9,2677.7,3.6528]
[1724702905898,3.22,2677.9,2677.7,4.02613]
[1724702906093,3.22,2677.9,2677.7,3.6528]
[1724702906489,3.22,2677.9,2677.7,4.02613]
[1724702906790,12.9756,2678.2,2677.9,0.3733]
[1724702906986,0.00458146,2678.3,2677.9,1.34783855]
[1724702907187,0.37327,2678.2,2678.0,1.7941]
[1724702907398,0.37783146,2678.3,2678.0,1.7941]
[1724702907597,0.37327,2678.2,2678.0,1.7941]
[1724702908096,0.37327,2678.1,2678.0,1.7941]
[1724702908299,3.59327,2678.1,2678.0,1.7941]
[1724702909799,3.22,2678.1,2678.0,1.7941]
[1724702909993,3.59327,2678.1,2678.0,1.7941]
[1724702910494,4.52646,2678.1,2678.0,1.7941]
[1724702911203,0.37331,2677.9,2677.7,4.62733855]
[1724702911501,0.37331,2677.9,2677.8,1.7295]
[1724702912493,3.59331,2677.9,2677.8,1.7295]
[1724702913494,0.37332,2677.8,2677.7,0.97453855]
[1724702913700,0.37333,2677.7,2677.6,4.18233855]
[1724702914010,3.59333,2677.7,2677.6,4.18233855]
[1724702914406,3.22,2677.7,2677.6,4.18233855]
[1724702915094,3.59333,2677.7,2677.6,4.18233855]
[1724702915294,3.22,2677.7,2677.6,4.18233855]
[1724702915798,3.22,2677.7,2677.6,3.2078]
[1724702916004,3.59333,2677.7,2677.6,3.212]
[1724702916198,7.32773,2677.7,2677.6,3.212]
[1724702916402,8.26106,2677.7,2677.6,3.212]
[1724702920509,1.30681,2677.4,2677.3,0.00477699]
[1724702920700,4.52681,2677.4,2677.3,0.00477699]
[1724702920901,8.26201,2677.4,2677.3,0.00477699]
[1724702921313,10.06011,2677.4,2677.3,0.00477699]
[1724702921902,15.06011,2677.4,2677.3,0.00477699]
[1724702922401,15.06011,2677.4,2676.6,1.45564919]
[1724702922402,14.68674,2677.4,2675.8,3.39651477]
[1724702922602,14.68674,2677.4,2673.1,0.3744]
[1724702922603,3.2078,2674.8,2673.1,0.3744]
[1724702922804,1.92464392,2674.3,2673.8,6.08117642]
[1724702923005,1.92464392,2674.3,2672.7,1.95659383]
[1724702923006,0.00560224,2674.2,2673.2,4.31523764]
[1724702923206,0.00560224,2674.2,2673.9,6.08117642]
[1724702923207,2.58511072,2674.2,2673.9,6.08117642]
[1724702923402,0.95756205,2674.0,2673.9,0.00448462]
[1724702923709,3.22,2674.5,2674.0,14.27631237]
[1724702923910,0.95777118,2674.3,2674.0,4.78251026]
[1724702924099,0.95777118,2674.3,2673.9,0.04944339]
[1724702924100,0.95777118,2674.3,2673.9,0.00448462]
[1724702924301,3.22,2674.1,2673.9,5.22800786]
[1724702924506,3.2078,2674.0,2673.9,0.00448462]
[1724702924802,3.2078,2674.0,2673.4,1.847]
[1724702924803,3.2078,2674.0,2673.3,40.8]
[1724702925005,3.2078,2674.0,2673.6,5.22352324]
[1724702925006,4.53690557,2674.0,2673.6,5.22352324]
[1724702925203,3.22,2673.8,2673.3,40.8]
[1724702925407,3.22,2673.8,2672.9,1.8451]
[1724702925604,3.22,2673.5,2673.1,5.22352324]
[1724702925810,3.22,2673.8,2673.1,5.22352324]
[1724702926011,0.95525557,2673.9,2673.1,5.22352324]
[1724702926012,0.3739,2673.6,2673.2,40.8]
[1724702926202,4.31,2673.6,2672.9,0.00425968]
[1724702926408,0.37393,2673.4,2672.9,0.00425968]
[1724702926611,5.26525557,2673.9,2672.9,0.00425968]
[1724702926815,3.966,2673.8,2673.3,5.22352324]
[1724702927010,4.68386,2673.9,2673.4,5.22352324]
[1724702927211,4.31,2673.9,2673.4,5.22352324]
[1724702927713,0.37389,2673.7,2673.4,5.22352324]
[1724702927913,3.2078,2674.0,2673.7,5.22352324]
[1724702928118,3.2078,2674.0,2673.8,5.22352324]
[1724702928313,0.37386,2673.9,2673.8,5.22352324]
[1724702928509,0.37386,2673.9,2673.1,0.37396]
[1724702928715,0.37387,2673.8,2673.7,5.22352324]
[1724702928917,3.2078,2674.0,2672.9,40.80425968]
[1724702928918,0.37387,2673.9,2673.6,5.22352324]
[1724702929219,0.37388,2673.8,2673.6,5.22352324]
[1724702929410,0.37387,2673.8,2673.7,5.22352324]
[1724702929609,0.37387,2673.9,2673.7,5.22352324]
[1724702930208,3.58165,2674.0,2673.7,5.22352324]
[1724702930416,0.37386,2673.9,2673.7,5.22352324]
[1724702930822,3.2078,2674.0,2673.8,5.22352324]
[1724702932023,3.58165,2674.0,2673.9,5.22352324]
[1724702932621,3.58165,2674.0,2673.0,3.99682735]
[1724702932622,3.58165,2674.0,2673.0,0.28210697]
[1724702932820,3.58165,2674.0,2673.8,5.22352324]
[1724702933223,0.37386,2673.9,2673.8,5.22352324]
[1724702933414,0.37386,2673.9,2673.2,1.8765]
[1724702933617,0.37386,2673.9,2673.8,5.22352324]
[1724702933822,3.2078,2674.0,2673.2,1.8765]
[1724702933823,7.5178,2674.0,2673.4,5.22352324]
[1724702934043,4.31,2673.6,2673.4,5.22352324]
[1724702934328,4.68391,2673.6,2673.4,5.22352324]
[1724702934829,4.31,2673.6,2673.4,5.22352324]
[1724702935325,4.68391,2673.6,2673.4,5.22352324]
[1724702936424,0.37392,2673.5,2673.4,5.22352324]
[1724702936628,4.68391,2673.6,2673.4,5.22352324]
[1724702936829,4.68391,2673.6,2672.9,0.00425968]
[1724702936830,0.37397,2673.2,2672.9,0.00425968]
[1724702937127,9.31,2673.6,2673.1,5.22352324]
[1724702937128,4.31,2673.3,2673.1,5.22352324]
[1724702937321,0.37396,2673.2,2672.9,5.22778292]
[1724702937524,0.37399,2673.0,2672.9,0.00425968]
[1724702938423,4.31,2673.3,2672.9,0.00425968]
[1724702938624,0.37398,2673.1,2672.9,0.00425968]
[1724702938925,4.31,2673.3,2672.9,0.00425968]
[1724702939232,4.68395,2673.3,2673.1,5.22352324]
[1724702940033,0.37396,2673.2,2673.1,5.22352324]
[1724702940433,4.31,2673.3,2673.1,5.22352324]
[1724702940628,3.2078,2673.2,2672.9,0.00425968]
[1724702941030,0.37397,2673.1,2673.0,5.22352324]
[1724702941235,0.37399,2673.0,2672.9,0.00425968]
[1724702941437,4.68399,2673.0,2672.9,0.00425968]
[1724702941630,9.24782286,2673.1,2672.9,0.00425968]
[1724702941829,7.5178,2673.2,2672.9,5.22778292]
[1724702942027,7.5178,2673.2,2672.9,0.00425968]
[1724702942432,7.5178,2673.2,2673.0,5.22352324]
[1724702942928,7.89177,2673.2,2673.0,5.22352324]
[1724702943231,16.2586,2673.2,2672.9,0.00425968]
[1724702943432,0.37399,2673.0,2672.9,0.00425968]
[1724702943831,14.12868902,2673.0,2672.9,0.00425968]
[1724702944230,14.12868902,2673.0,2671.5,42.10987]
[1724702944231,0.37407,2672.5,2671.9,0.28714563]
[1724702944537,0.00561283,2672.5,2672.4,5.22352324]
[1724702944832,4.088,2673.1,2672.4,5.22352324]
[1724702945031,0.37401,2672.9,2672.8,5.22352324]
[1724702945223,0.37401,2672.9,2672.8,5.2280206]
[1724702945428,9.11561,2672.9,2672.8,0.00449736]
[1724702945628,0.37401,2672.9,2672.8,0.00449736]
[1724702946234,0.37403,2672.7,2672.6,0.00561283]
[1724702946436,4.68403,2672.7,2672.6,0.00561283]
[1724702946940,0.37403,2672.7,2672.6,0.00561283]
[1724702947138,0.37402,2672.8,2672.6,0.00561283]
[1724702947341,4.31,2672.9,2672.7,5.22352324]
[1724702947539,4.68401,2672.9,2672.7,5.22352324]
[1724702947839,0.37401,2672.8,2672.7,5.22352324]
[1724702948737,0.37402,2672.8,2672.6,0.00897606]
[1724702948932,3.23,2672.9,2672.6,5.2324993]
[1724702948933,0.37403,2672.7,2672.6,5.2324993]
[1724702949128,0.37403,2672.7,2672.6,0.00897606]
[1724702949328,0.37403,2672.7,2672.6,5.2324993]
[1724702949528,3.23,2672.9,2672.6,5.2324993]
[1724702949840,0.37399,2673.0,2672.8,5.22352324]
[1724702950029,0.374,2673.0,2672.8,5.22352324]
[1724702950229,9.14781077,2673.0,2672.9,5.22352324]
[1724702950535,0.00561283,2673.1,2672.9,5.59752324]
[1724702950836,4.088,2673.3,2673.1,5.22352324]
[1724702951135,3.60391,2673.6,2673.2,5.22352324]
[1724702951339,3.6039,2673.6,2673.5,5.22352324]
[1724702951731,3.23561283,2673.8,2673.5,5.22352324]
[1724702952032,3.60949283,2673.8,2673.7,5.22352324]
[1724702952539,3.23561283,2673.8,2673.7,5.22352324]
[1724702953042,3.2078,2674.0,2673.7,10.22352324]
[1724702953237,0.00335413,2674.1,2674.0,0.37385]
[1724702953441,3.23,2674.5,2674.1,0.37383]
[1724702953642,3.23,2674.5,2674.0,5.22352324]
[1724702953643,3.23,2674.5,2674.4,5.22352324]
[1724702954139,0.37374,2674.8,2674.4,5.22352324]
[1724702954140,0.00561283,2674.7,2674.4,5.22352324]
[1724702954343,0.00561283,2674.7,2674.4,0.37378]
[1724702954344,0.01006278,2674.7,2674.4,0.37378]
[1724702954534,0.01006278,2674.7,2674.6,5.22352324]
[1724702954847,169.79639,2675.2,2674.6,9.54762164]
[1724702954848,173.02639,2675.2,2674.6,9.54762164]
[1724702955040,173.02639,2675.2,2675.1,5.22352324]
[1724702955345,173.40007,2675.2,2675.1,5.22352324]
[1724702955743,173.40445525,2675.2,2675.1,5.22352324]
[1724702956137,170.17445525,2675.2,2675.1,5.22352324]
[1724702956335,169.80077525,2675.2,2674.6,0.00441412]
[1724702956540,5.61793,2675.1,2675.0,5.22352324]
[1724702956735,1.30793,2675.1,2675.0,5.22352324]
[1724702956936,152.9995145,2675.2,2675.1,0.37369]
[1724702957146,151.00372338,2675.2,2675.1,4.11209]
[1724702957353,151.00372338,2675.2,2675.1,7.62684516]
[1724702957739,151.00372338,2675.2,2675.1,13.00053516]
[1724702958544,151.00372338,2675.2,2675.1,3.88844516]
[1724702958745,151.00372338,2675.2,2675.1,7.62684516]
[1724702958944,151.00372338,2675.2,2675.1,3.7384]
[1724702959147,142.35802338,2675.2,2675.1,13.22185271]
[1724702959347,135.86852338,2675.2,2675.1,16.6195195]
[1724702960151,135.86852338,2675.2,2675.1,16.42965271]
[1724702961152,135.86602338,2675.2,2675.1,16.42965271]
[1724702961349,135.86602338,2675.2,2675.1,16.43385271]
[1724702961544,135.7381528,2675.2,2675.1,11.43385271]
[1724702961745,135.7381528,2675.2,2675.1,16.43385271]
[1724702961948,135.7381528,2675.2,2675.1,16.62499026]
[1724702963046,135.7381528,2675.2,2675.1,16.43385271]
[1724702965746,135.7381528,2675.2,2675.1,11.43385271]
[1724702966254,135.7381528,2675.2,2675.1,11.06016271]
[1724702966751,135.7381528,2675.2,2675.1,11.43385271]
[1724702968544,135.7381528,2675.2,2675.1,16.43385271]
[1724702968749,135.7381528,2675.2,2675.1,11.43385271]
[1724702969151,135.49813154,2675.2,2675.1,16.43385271]
[1724702969948,135.49813154,2675.2,2675.1,17.36809271]
[1724702970448,135.2477692,2675.2,2675.1,17.36809271]
[1724702970943,133.7068692,2675.2,2675.1,17.36809271]
[1724702971553,133.7068692,2675.2,2675.1,17.55266405]
[1724702972150,133.7068692,2675.2,2675.1,58.35266405]
[1724702972344,133.7068692,2675.2,2675.1,57.41842405]
[1724702972549,133.7068692,2675.2,2675.1,16.43385271]
[1724702972952,133.7068692,2675.2,2675.1,17.55151106]
[1724702973148,133.7068692,2675.2,2675.1,58.35151106]
[1724702974348,133.15313559,2675.2,2675.1,59.28575106]
[1724702974845,133.15313559,2675.2,2675.1,58.35151106]
[1724702975042,133.15313559,2675.2,2675.1,57.41727106]
[1724702976255,133.15313559,2675.2,2675.1,58.35151106]
[1724702977050,132.02633559,2675.2,2675.1,59.28575106]
[1724702977245,129.37161617,2675.2,2675.1,59.28575106]
[1724702977451,112.64961617,2675.2,2675.1,59.10233271]
[1724702977956,111.33310309,2675.2,2675.1,65.75001139]
[1724702978151,110.78880309,2675.2,2675.1,65.75001139]
[1724702978354,110.78880309,2675.2,2675.1,65.74581139]
[1724702978566,110.60880309,2675.2,2675.1,65.55813271]
[1724702979165,110.60880309,2675.2,2675.1,62.51155946]
[1724702979353,110.60880309,2675.2,2675.1,61.57731946]
[1724702979658,110.60880309,2675.2,2675.1,65.73571946]
[1724702980053,110.43500309,2675.2,2675.1,65.73571946]
[1724702980658,94.86820309,2675.2,2675.1,66.66995946]
[1724702980964,94.86820309,2675.2,2675.1,69.71653271]
[1724702981158,94.86820309,2675.2,2675.1,66.48653271]
[1724702981358,94.86820309,2675.2,2675.1,66.67083764]
[1724702981564,94.86820309,2675.2,2675.1,65.73659764]
[1724702982767,94.86820309,2675.2,2675.1,66.67083764]
[1724702983859,94.72057057,2675.2,2675.1,61.95259764]
[1724702984069,94.72057057,2675.2,2675.1,61.01835764]
[1724702984261,94.72057057,2675.2,2675.1,64.80235764]
[1724702984456,94.72057057,2675.2,2675.1,65.73659764]
[1724702985563,94.72057057,2675.2,2675.1,66.67083764]
[1724702986473,94.19307057,2675.2,2675.1,66.67083764]
[1724702986962,75.98843057,2675.2,2675.1,64.61805271]
[1724702987272,75.98843057,2675.2,2675.1,14.85005702]
[1724702989171,75.98843057,2675.2,2675.0,3.2078]
[1724702989362,80.10051057,2675.2,2674.6,0.00441412]
[1724702989562,75.98843057,2675.2,2674.6,0.00441412]
[1724702989764,75.98843057,2675.2,2674.7,4.14459195]
[1724702989961,0.93448,2674.4,2674.2,0.00561283]
[1724702990173,0.37385,2674.0,2673.2,3.2078]
[1724702990471,3.23,2674.0,2673.4,4.10627228]
[1724702990767,3.23,2674.0,2673.2,3.58175]
[1724702991069,0.00561283,2673.9,2673.5,4.10627228]
[1724702991464,0.00561283,2673.9,2673.3,0.00561283]
[1724702991666,0.00561283,2673.9,2673.6,3.82196214]
[1724702991871,0.00561283,2673.9,2673.7,3.23]
[1724702992071,0.00561283,2673.9,2673.6,8.42389]
[1724702992269,0.00561283,2673.9,2673.8,3.04041227]
[1724702992477,0.00561283,2673.9,2673.7,4.59561389]
[1724702992668,0.00561283,2673.9,2673.7,4.11389]
[1724702993072,0.00561283,2673.9,2673.8,4.22172389]
[1724702993760,6.95341283,2673.9,2673.3,0.00561283]
[1724702993966,3.74,2673.4,2673.3,0.00561283]
[1724702994467,3.74,2673.4,2673.3,4.30954376]
[1724702998072,5.5595,2673.8,2673.3,4.30954376]
[1724702998073,5.5595,2673.8,2673.4,0.37392]
[1724702998378,3.74,2673.5,2673.4,0.37392]
[1724702998681,3.74,2673.5,2673.4,4.27232986]
[1724703000474,5.5595,2673.8,2673.4,4.27232986]
[1724703000475,3.7725,2673.8,2673.4,4.27232986]
[1724703000681,3.74,2673.6,2673.5,0.37392]
[1724703001075,3.74,2673.6,2673.5,4.30147808]
[1724703001678,3.74,2673.6,2673.4,3.99188063]
[1724703001875,3.7725,2673.8,2673.3,0.37955283]
[1724703001876,3.74,2673.4,2673.3,0.37955283]
[1724703002080,3.74,2673.5,2673.3,0.37955283]
[1724703002384,3.74,2673.5,2673.4,4.36581063]
[1724703002574,3.74,2673.5,2673.4,0.37393]
[1724703002776,3.74,2673.5,2673.4,4.43999788]
[1724703002978,3.74,2673.5,2673.4,4.06606788]
[1724703003982,3.7725,2673.8,2673.4,4.43998788]
[1724703004185,3.74,2673.6,2673.5,0.37392]
[1724703004380,3.74,2673.6,2673.4,4.06606788]
[1724703004578,3.74,2673.6,2673.5,3.86879589]
[1724703004779,3.74,2673.6,2673.4,0.37392]
[1724703005285,3.74,2673.6,2673.5,4.33960391]
[1724703005680,3.74,2673.6,2673.4,4.64181773]
[1724703006076,3.74,2673.6,2673.5,4.64181773]
[1724703006379,3.74,2673.6,2673.5,0.37392]
[1724703006579,0.00561283,2673.9,2673.6,0.3739]
[1724703006784,3.74561283,2673.9,2673.8,0.37387]
[1724703006980,3.5425,2674.4,2674.1,0.37383]
[1724703007284,3.74,2674.3,2674.2,3.95481469]
[1724703007584,3.74,2674.3,2674.2,3.58099469]
[1724703007882,3.74,2674.3,2674.1,0.37382]
[1724703008085,3.74,2674.3,2674.0,0.37384]
[1724703008274,1.7751,2674.4,2674.2,4.02039414]
[1724703008479,13.0843,2674.3,2673.5,0.0042]
[1724703008679,3.74,2673.6,2673.5,0.0042]
[1724703009072,10.27964,2674.3,2673.5,0.0042]
[1724703009280,3.74,2673.7,2673.5,4.10848198]
[1724703011282,3.74,2673.7,2673.5,4.48239198]
[1724703011598,3.6859,2674.3,2673.7,0.37388]
[1724703011786,3.74,2674.0,2673.8,0.37387]
[1724703011990,3.74,2674.0,2673.9,0.37386]
[1724703012194,1.7751,2674.4,2674.1,0.37382]
[1724703012391,3.74,2674.2,2674.1,0.37382]
[1724703012694,3.74,2674.3,2674.1,4.33090995]
[1724703012993,3.74,2674.3,2674.1,4.33091995]
[1724703013191,3.74,2674.3,2674.1,3.95708995]
[1724703013589,3.74,2674.3,2674.1,0.37382]
[1724703013790,3.74,2674.3,2674.2,4.21727051]
[1724703014183,3.74,2674.3,2674.1,4.21727051]
[1724703014387,3.2078,2674.4,2674.2,3.96621038]
[1724703014794,3.74,2674.3,2673.9,2.14815]
[1724703015093,3.74,2674.2,2674.1,3.96621038]
[1724703015290,3.74,2674.2,2674.1,4.34004038]
[1724703015493,3.74,2674.2,2674.0,0.37384]
[1724703015692,0.00561283,2674.5,2674.1,4.27761533]
[1724703015989,0.00438525,2675.2,2674.3,4.1423]
[1724703016196,3.74,2674.9,2674.4,2.85278]
[1724703016390,3.74,2674.9,2674.8,0.37373]
[1724703016595,3.74,2674.9,2674.7,0.37374]
[1724703016790,3.74,2674.9,2674.5,46.9988]
[1724703016791,3.74,2674.9,2674.8,4.1057221]
[1724703016993,3.74,2674.9,2674.6,4.4794721]
[1724703017293,3.74,2674.9,2674.8,4.1057221]
[1724703017589,3.74,2674.9,2674.8,0.37373]
[1724703017895,0.00561283,2675.1,2674.8,4.69383586]
[1724703018091,3.74,2675.0,2674.8,4.69383586]
[1724703018294,0.00561283,2675.1,2674.8,11.83790586]
[1724703018597,80.44412777,2675.3,2675.2,0.37368]
[1724703018894,80.44412777,2675.3,2675.2,7.89148]
[1724703019189,80.44412777,2675.3,2675.2,20.55872116]
[1724703019691,80.44889585,2675.3,2675.2,20.56139203]
[1724703019885,71.2186522,2675.3,2675.2,20.93579203]
[1724703022791,71.2186522,2675.3,2675.2,15.93579203]
[1724703022998,71.2186522,2675.3,2675.2,16.18747408]
[1724703023390,71.2186522,2675.3,2675.2,4.55839408]
[1724703023589,71.2186522,2675.3,2675.2,3.93231203]
[1724703024193,74.9586522,2675.3,2675.2,3.93231203]
[1724703026293,74.9586522,2675.3,2675.2,4.30599203]
[1724703026294,71.2186522,2675.3,2675.2,4.30599203]
[1724703026494,71.2186522,2675.3,2675.2,7.51379203]
[1724703026893,0.00476808,2675.3,2675.2,7.51379203]
[1724703027294,0.00476808,2675.3,2675.2,12.51379203]
[1724703028391,0.00367142,2675.5,2675.4,0.37365]
[1724703028789,0.00367142,2675.5,2675.4,4.52699154]
[1724703029096,1.8868,2676.1,2675.4,13.82507154]
[1724703029293,3.74,2675.9,2675.8,0.37359]
[1724703029499,3.74,2675.9,2675.7,0.3736]
[1724703029789,3.74,2675.9,2675.8,4.2789412]
[1724703029994,3.74,2675.9,2675.8,0.37359]
[1724703030190,3.74,2675.9,2675.8,4.6525312]
[1724703030986,3.74,2675.9,2675.8,4.2789412]
[1724703031190,3.74,2675.9,2675.8,4.6525312]
[1724703031393,3.74,2675.9,2675.5,3.92828877]
[1724703031590,3.74,2675.9,2675.8,4.03806004]
[1724703031991,3.74,2675.9,2675.8,0.37359]
[1724703032192,3.74,2675.9,2675.8,4.41165004]
[1724703032495,3.74,2675.9,2675.7,0.3736]
[1724703032800,3.74,2675.9,2675.8,3.96749001]
[1724703032993,3.74,2675.9,2675.7,0.3736]
[1724703033293,3.74,2675.9,2675.8,3.96749001]
[1724703035400,3.74,2675.9,2675.8,4.34108001]
[1724703035702,3.74,2675.9,2675.8,0.37359]
[1724703036097,3.74,2675.9,2675.8,4.40117902]
[1724703036402,3.74,2675.9,2675.8,4.02758902]
[1724703036803,3.74,2675.9,2675.7,4.24162959]
[1724703037001,3.74,2675.9,2675.8,4.24162959]
[1724703037394,3.74,2675.9,2675.7,4.24162959]
[1724703037702,3.74,2675.9,2675.8,4.24492217]
[1724703037904,3.74,2675.9,2675.7,4.24492217]
[1724703038202,3.74,2675.9,2675.8,4.24492217]
[1724703038406,3.74,2675.9,2675.6,0.37362]
[1724703038695,3.74,2675.9,2675.8,4.33603083]
[1724703039091,3.74,2675.9,2675.7,4.70964083]